[Event "2nd Bassano Easter 2022"]
[Site "Bassano del Grappa"]
[Date "2022.04.15"]
[Round "1.1"]
[White "Sreyas Payyappat"]
[Black "Bernadskiy, Vitaliy"]
[Result "0-1"]
[ECO "B15"]
[WhiteElo "2184"]
[BlackElo "2601"]
[Annotator "TA"]
[PlyCount "116"]
[EventDate "2022.04.14"]
[EventType "swiss"]
[EventCountry "ITA"]
[SourceTitle "playchess.com"]
[Source "ChessBase"]
[SourceQuality "1"]
[TimeControl "30/3600+30:1800+30"]

{[%evp 17,115,11,11,10,24,29,37,26,34,0,0,0,-6,-10,-10,-29,-2,-12,-6,-4,0,-39,-42,-50,-45,-58,-51,-41,-42,-51,-50,-66,-68,-137,-131,-143,-136,-202,-198,-220,-223,-442,-422,-1854,-2053,-1533,-2009,-1841,-1639,-1405,-1368,-5006,-3620,-3108,-2837,-29957,-29958,-29959,-29958,-29959,-29960,-29952,-141,-29968,-29970,-29969,-29971,-29971,-29972,-29972,-29973,-29972,-29973,-29975,-29976,-29976,-29977,-29977,-29979,-29985,-29986,-29987,-29988,-29988,-29989,-29989,-29990,-29990,-29990,-29993,-29991,-29991,-29992,-29996,-29997,-29997,-29997,-29998,-29999,-29999]} 1. e4 {[%emt 0:00:02]} c6 {[%emt 0:00:58]} 2. d4 {[%emt 0:00:08]} d5 {[%emt 0:00:02]} 3. Nc3 {[%emt 0:00:06]} dxe4 {[%emt 0:00:29]} 4. Nxe4 {[%emt 0:00:07]} Nf6 {[%emt 0:00:06]} 5. Nxf6+ {[%emt 0:00:08]} exf6 {[%emt 0:00:05]} 6. Bc4 {[%emt 0:00:08]} Bd6 {[%emt 0:02:17]} 7. Qe2+ {[%emt 0:00:06]} Qe7 {[%emt 0:00:04]} 8. Qxe7+ {[%emt 0:00:05]} Kxe7 {[%emt 0:00:06]} 9. Ne2 {[%emt 0:02:07]} Bf5 {[%emt 0:01:58]} 10. c3 {[%emt 0:02:43] B15: Caro-Kann: 3 Nc3: 3...g6 and 3...dxe4 4 Nxe4 Nf6 5 Nxf6+ exf6.} Nd7 {[%emt 0:00:14]} 11. Bf4 {[%emt 0:00:51]} Bxf4 {[%emt 0:02:25]} 12. Nxf4 {[%emt 0:00:08] White is slightly better.} g5 {[%emt 0:00:08]} 13. Bd3 {[%emt 0:01:15]} Bg6 {[%emt 0:00:33]} 14. Nxg6+ {[%emt 0:02:22]} hxg6 {[%emt 0:00:10]} 15. O-O {[%emt 0:01:52]} f5 {[%emt 0:05:06] [#]} 16. f4 $146 {[%emt 0:03:29]} ({Predecessor:} 16. Rfe1+ Kf6 17. h3 Rae8 {½-½ (17) Sanduleac,V (2425)-Macovei,A (2457) Kishinev 2020}) 16... gxf4 {[%emt 0:04:21]} 17. Rxf4 {[%emt 0:00:46]} Nb6 {[%emt 0:00:33]} 18. Re1+ {[%emt 0:06:21]} Kf6 {[%emt 0:00:54]} 19. g4 {[%emt 0:01:03]} Rh4 {[%emt 0:03:08]} 20. g5+ {[%emt 0:00:35]} Kxg5 {[%emt 0:00:04]} 21. Rxh4 {[%emt 0:00:04]} Kxh4 $15 {[%emt 0:00:04][%mdl 4096] Endgame KRB-KRN} 22. Re7 {[%emt 0:00:06][%csl LRb7,LRf7]} Rb8 {[%emt 0:00:40]} 23. Rxf7 {[%emt 0:01:37]} Na4 {[%emt 0:00:20]} 24. Rh7+ {[%emt 0:07:36]} Kg4 {[%emt 0:05:05]} 25. Be2+ {[%emt 0:06:25]} (25. Rg7 $15) 25... Kf4 $17 {[%emt 0:01:58]} 26. Rh3 {[%emt 0:04:42]} Nxb2 {[%emt 0:03:38]} 27. Rg3 {[%emt 0:04:59]} (27. c4 $17) 27... g5 $1 $19 {[%emt 0:01:47][%cal Bg6g5,Bg5g4][%mdl 32]} 28. Kf2 {[%emt 0:05:27] [#]} g4 {[%emt 0:01:01] Prevents Rf3+.} 29. h3 $2 {[%emt 0:03:42]} (29. c4 {was the only chance.}) 29... Rh8 {[%emt 0:00:31]} 30. hxg4 {[%emt 0:00:00]} (30. c4 $142 gxh3 31. Rf3+ Ke4 32. Rb3 Nxc4 33. Bxc4) 30... Rh2+ {[%emt 0:00:00]} 31. Rg2 {[%emt 0:01:02]} Rxg2+ {[%emt 0:00:15]} 32. Kxg2 {[%emt 0:00:06]} fxg4 {[%emt 0:00:05] KB-KN} 33. c4 {[%emt 0:00:56]} Na4 {[%emt 0:00:31] aiming for ...Nc3.} 34. d5 {[%emt 0:00:42]} cxd5 {[%emt 0:01:59]} 35. cxd5 {[%emt 0:00:05]} Ke5 {[%emt 0:00:08] White must now prevent ...b6.} 36. Bxg4 {[%emt 0:00:32] [#]} Nc3 $1 {[%emt 0:00:03]} 37. a3 {[%emt 0:01:05]} Nxd5 {[%emt 0:01:31]} 38. Kf2 {[%emt 0:02:40]} Kd4 {[%emt 0:00:50]} 39. Ke2 {[%emt 0:01:01]} Nc3+ $2 {[%emt 0:00:14]} (39... Ne3 {mates} 40. Bf3 b6 41. Kd2 Nc4+ 42. Kc2 Nxa3+ 43. Kb3 Nb1 44. Be2 Kc5 45. Bd3 Nd2+ 46. Kc2 Nc4 47. Bh7 a5 48. Bg6 b5 49. Bf7 a4 50. Be8 Nb6 51. Bh5 b4 52. Kb1 b3 53. Bd1 Kb4 54. Kb2 a3+ 55. Kc1 b2+ 56. Kc2 Nd5 57. Bh5 Nc3 58. Kd3 b1=Q+ 59. Ke3 Qe4+ 60. Kf2 Qf4+ 61. Kg1 Ne4 62. Bf3 Qxf3 63. Kh2 Qg3+ 64. Kh1 Nf2#) 40. Ke1 $2 {[%emt 0:01:27][%mdl 8192] White does not recover from this.} (40. Kd2 $17) 40... Nb1 {[%emt 0:00:29] Black mates.} 41. a4 {[%emt 0:00:32]} a5 {[%emt 0:00:03]} 42. Kd1 {[%emt 0:03:40]} Nc3+ {[%emt 0:00:51]} 43. Kc2 {[%emt 0:00:08]} Nxa4 {[%emt 0:00:47]} 44. Bd7 {[%emt 0:00:06]} Nb6 {[%emt 0:03:33]} 45. Bb5 {[%emt 0:01:28]} Kc5 {[%emt 0:00:09]} 46. Be2 {[%emt 0:00:11]} Nc4 {[%emt 0:00:11]} 47. Kc3 {[%emt 0:00:50]} b5 {[%emt 0:00:07]} 48. Bd3 {[%emt 0:01:33]} b4+ {[%emt 0:01:03]} 49. Kb3 {[%emt 0:00:25]} a4+ {[%emt 0:00:05][%cal Ba5a4,Ba4a3][%mdl 32]} 50. Kc2 {[%emt 0:00:21]} Kd4 {[%emt 0:00:04]} 51. Bg6 {[%emt 0:01:08]} b3+ {[%emt 0:00:07][%cal Bb4b3,Bb3c2,Bc2c1,Bc1a1][%mdl 32]} 52. Kb1 {[%emt 0:00:15]} Kc3 {[%emt 0:00:04]} 53. Ka1 {[%emt 0:00:36]} a3 {[%emt 0:00:05]} 54. Bf7 {[%emt 0:03:37]} Ne3 {[%emt 0:00:24]} 55. Bg6 {[%emt 0:00:27]} Nc2+ {[%emt 0:00:06]} 56. Bxc2 {[%emt 0:00:06]} bxc2 {[%emt 0:00:07]} 57. Ka2 {[%emt 0:00:03]} c1=R {[%emt 0:00:24]} 58. Kxa3 {[%emt 0:00:06]} Ra1# {[%emt 0:06:00] Weighted Error Value: White=0.68/Black=0.20 (precise)} 0-1

[Event "2nd Bassano Easter 2022"]
[Site "Bassano del Grappa"]
[Date "2022.04.15"]
[Round "1.2"]
[White "Basso, Pier Luigi"]
[Black "Perossa, Nicolas"]
[Result "1-0"]
[ECO "E84"]
[WhiteElo "2600"]
[BlackElo "2139"]
[Annotator "TA"]
[PlyCount "61"]
[EventDate "2022.04.14"]
[EventType "swiss"]
[EventCountry "ITA"]
[SourceTitle "playchess.com"]
[Source "ChessBase"]
[SourceQuality "1"]
[TimeControl "30/3600+30:1800+30"]

{[%evp 17,61,42,42,32,45,37,110,97,133,77,98,75,74,32,5,8,16,9,51,37,27,32,44,16,12,-78,75,33,193,188,312,302,300,304,300,247,239,250,2554,2512,2812,2816,2673,2647,29993,29994]} 1. d4 {[%emt 0:05:20]} Nf6 {[%emt 0:00:06]} 2. c4 {[%emt 0:00:25]} g6 {[%emt 0:00:01]} 3. Nc3 {[%emt 0:02:13]} Bg7 {[%emt 0:00:11]} 4. e4 {[%emt 0:00:06]} d6 {[%emt 0:00:08]} 5. f3 {[%emt 0:00:05]} O-O {[%emt 0:00:22]} 6. Nge2 {[%emt 0:00:04]} Nc6 {[%emt 0:00:45]} 7. Be3 {[%emt 0:00:50]} a6 {[%emt 0:00:22]} 8. Qd2 {[%emt 0:00:21]} Rb8 {[%emt 0:00:09]} 9. Rc1 {[%emt 0:00:09]} Bd7 {[%emt 0:00:05]} 10. Nd1 {[%emt 0:00:06] E84: King's Indian: Sämisch Panno: 7 Nge2 a6 8 Qd2 Rb8.} b5 {[%emt 0:03:55]} 11. c5 {[%emt 0:00:11]} dxc5 {[%emt 0:11:46]} ({Black should play} 11... Ne8 $14) 12. Rxc5 $16 {[%emt 0:01:10] White is better.} Ne8 {[%emt 0:00:36] [#]} 13. h4 $146 {[%emt 0:03:44]} (13. e5 $142) ({Predecessor:} 13. e5 Qc8 14. Nf4 e6 15. h4 f6 16. exf6 Bxf6 17. h5 g5 18. Ne2 h6 19. Qc2 {1-0 (40) Lorparizangeneh,S (2190)-Asgari,M (2300) Zahedan 2012}) 13... Nd6 {[%emt 0:03:13]} 14. b3 {[%emt 0:00:59] Against Nc4} e5 {[%emt 0:03:41]} 15. d5 {[%emt 0:02:39]} Ne7 {[%emt 0:00:51]} 16. h5 {[%emt 0:01:15] Strongly threatening Bh6.} f5 {[%emt 0:06:28]} 17. hxg6 {[%emt 0:49:23]} fxe4 {[%emt 0:06:09]} (17... Nxg6 $5 {[%cal Rf5e4]} 18. Bg5 Bf6 19. Bxf6 Rxf6 $14) 18. Bh6 $36 {[%emt 0:00:00][%mdl 2048] Threatens to win with Bxg7. White is pushing.} hxg6 {[%emt 0:00:30]} 19. Bxg7 {[%emt 0:00:00]} Kxg7 {[%emt 0:03:25]} 20. Qh6+ {[%emt 0:00:00]} (20. Qb2 $5 {[%cal Rb2e5]} exf3 21. Qxe5+ Rf6 22. gxf3 $16) 20... Kf7 {[%emt 0:00:05]} 21. Qh7+ {[%emt 0:00:00]} (21. f4 $11 exf4 22. Qxf4+ Ke8 23. Qe5) 21... Kf6 $2 {[%emt 0:15:56]} (21... Ke8 $17 {keeps the pressure on.}) 22. Qh4+ {[%emt 0:02:30][%mdl 1024] White has strong compensation.} g5 $2 {[%emt 0:05:33] Black cannot hold the game after this.} (22... Kf7 $14) 23. Qh6+ $18 {[%emt 0:00:00]} Ng6 {[%emt 0:00:12] [#]} (23... Kf7 {was worth a try.}) 24. Ng3 $1 {[%emt 0:00:00] Dancing on a razor blade.} (24. Rh5 $2 Nf7 25. Qh7 Rh8 26. Qxh8+ Ngxh8 $19) 24... Be8 {[%emt 0:03:14]} 25. Nh5+ {[%emt 0:01:30]} ({Weaker is} 25. Nxe4+ Nxe4 26. fxe4 Rh8 27. Qxh8+ Nxh8 28. Rxh8 Kg7 $17) (25. fxe4 $6 Rh8 26. Nh5+ Ke7 27. Qxg5+ (27. Qg7+ Bf7 $16) 27... Kf8 $18) 25... Ke7 26. Qxg5+ {[%emt 0:00:00]} (26. Qg7+ Bf7 27. g3 Rg8 28. Qf6+ Kf8 $16) 26... Kf7 {[%emt 0:00:30]} 27. Qh6 {[%emt 0:01:00][%cal Rh6h7]} Rg8 $2 {[%emt 0:00:17] [#]} (27... Ke7 28. Ne3 (28. Qg7+ Bf7 $16) 28... Rh8 29. Qg7+ Bf7 30. fxe4 Qf8) 28. Rxc7+ $1 {[%emt 0:00:00][%mdl 512]} Bd7 {[%emt 0:00:39] [#]} (28... Qxc7 29. Qh7+) 29. Rxd7+ $1 {[%emt 0:00:00][%mdl 512]} Qxd7 {[%emt 0:00:03]} 30. Qh7+ {[%emt 0:00:00]} Ke8 {[%emt 0:00:00]} 31. Nf6+ {[%emt 0:32:00][%mdl 64] Deflection, Double Attack.  Weighted Error Value: White=0.19 (very precise) /Black=0.61} 1-0

[Event "2nd Bassano Easter 2022"]
[Site "Bassano del Grappa"]
[Date "2022.04.15"]
[Round "1.3"]
[White "Colonetti, Fabio"]
[Black "Postny, Evgeny"]
[Result "0-1"]
[ECO "E40"]
[WhiteElo "2144"]
[BlackElo "2567"]
[Annotator "TA"]
[PlyCount "62"]
[EventDate "2022.04.14"]
[EventType "swiss"]
[EventCountry "ITA"]
[SourceTitle "playchess.com"]
[Source "ChessBase"]
[SourceQuality "1"]
[TimeControl "30/3600+30:1800+30"]

{[%evp 9,62,0,17,1,-4,-50,-54,-54,8,-26,-21,-33,-24,-31,-17,-14,-12,-15,-25,-66,-67,-73,-56,-147,-102,-146,-127,-128,-131,-122,-85,-105,-104,-94,-81,-122,-116,-114,-108,-124,-106,-140,-112,-153,-141,-144,-127,-183,-195,-184,-185,-375,-358,-318,-324]} 1. d4 {[%emt 0:00:03]} Nf6 {[%emt 0:00:16]} 2. c4 {[%emt 0:00:21]} e6 {[%emt 0:00:06]} 3. Nc3 {[%emt 0:00:17]} Bb4 {[%emt 0:00:06]} 4. e3 {[%emt 0:00:33]} d5 {[%emt 0:00:35]} 5. Bd3 {[%emt 0:00:54]} e5 {[%emt 0:00:21]} 6. dxe5 {[%emt 0:09:55] E40: Nimzo-Indian: Rubinstein (4 e3): Unusual Black 4th moves.} dxc4 {[%emt 0:00:33]} 7. Qa4+ {[%emt 0:10:52]} (7. Bxc4 $11 Qxd1+ 8. Kxd1 Bxc3 9. bxc3) 7... Nc6 $15 {[%emt 0:00:58]} 8. Bxc4 {[%emt 0:09:09] Black is slightly better.} Nd5 $5 {[%emt 0:17:42][%mdl 4] A promising side line.} (8... Ne4 $1 $15 9. a3 Bxc3+ 10. bxc3 Nc5) 9. Bxd5 {[%emt 0:10:04]} Bxc3+ {[%emt 0:02:28][%mdl 64] Remove Defender} ({But not} 9... Qxd5 10. Qxb4 $1 Nxb4 11. Nxd5 Nxd5 12. Bd2 $14) 10. bxc3 {[%emt 0:00:26]} Qxd5 {[%emt 0:00:06]} 11. Nf3 {[%emt 0:04:08] [#]} Be6 $146 {[%emt 0:14:55]} ({Predecessor:} 11... O-O 12. O-O Nxe5 13. Nxe5 Qxe5 14. Rb1 b6 15. Qd4 Qe6 16. c4 c5 17. Qc3 Qg6 {0-1 (33) Pecurica,M (2331)-Tomic,A (2327) Podgorica 2021}) 12. O-O $1 {[%emt 0:02:33]} Qc4 $36 {[%emt 0:01:26][%mdl 2048] Black has the initiative.} 13. Qxc4 {[%emt 0:04:09]} (13. Qa3 {with more complications.} b6 14. Nd2 Qb5 15. Nf3) 13... Bxc4 {[%emt 0:01:01]} 14. Re1 {[%emt 0:00:33]} O-O-O {[%emt 0:00:43]} 15. Nd4 {[%emt 0:05:56]} Nxe5 {[%emt 0:00:37]} 16. Ba3 {[%emt 0:01:15]} (16. e4 $15) 16... b6 {[%emt 0:05:54]} 17. e4 {[%emt 0:03:05]} c5 {[%emt 0:03:20]} 18. Nf5 {[%emt 0:00:22]} g6 {[%emt 0:04:00][%cal Bg7g6,Bg6g5,Bg5g4][%mdl 32]} 19. Ne3 {[%emt 0:00:40]} g5 {[%emt 0:01:56]} 20. Nxc4 {[%emt 0:02:26]} Nxc4 {[%emt 0:00:09]} 21. Bc1 {[%emt 0:00:06]} g4 {[%emt 0:00:57]} 22. Bf4 {[%emt 0:00:23]} Rhe8 {[%emt 0:02:28]} 23. e5 {[%emt 0:02:24]} Rd3 {[%emt 0:04:29]} 24. Rac1 {[%emt 0:00:12]} b5 {[%emt 0:00:28]} 25. Kf1 {[%emt 0:00:53]} Re6 {[%emt 0:01:47]} 26. Re4 {[%emt 0:01:12]} f5 {[%emt 0:00:29]} 27. Ree1 {[%emt 0:00:25]} Kb7 {[%emt 0:01:40] &Nero is much more active.} 28. Red1 {[%emt 0:00:40]} (28. Ke2 $17 {was called for.} Rd7 29. Rc2) 28... Nb2 $19 {[%emt 0:00:10]} ({Weaker is} 28... Nxe5 29. Re1 Rd5 30. a4 $11) 29. Re1 {[%emt 0:00:30] [#]} Kc6 $1 {[%emt 0:01:50]} ({Stronger than} 29... Nc4 30. Rcd1 Rxd1 31. Rxd1 $17) 30. Ke2 $2 {[%emt 0:00:00]} (30. Re2 Na4 31. Rec2) 30... Rd7 {[%emt 0:00:00]} 31. Bg3 {[%emt 0:02:09]} Nd3 {[%emt 0:00:54] Weighted Error Value: White=0.27 (precise) /Black=0.14 (very precise)} 0-1

[Event "2nd Bassano Easter 2022"]
[Site "Bassano del Grappa"]
[Date "2022.04.15"]
[Round "1.4"]
[White "Heberla, Bartlomiej"]
[Black "Nisavic, Uros"]
[Result "1-0"]
[ECO "E04"]
[WhiteElo "2570"]
[BlackElo "2110"]
[Annotator "TA"]
[PlyCount "59"]
[EventDate "2022.04.14"]
[EventType "swiss"]
[EventCountry "ITA"]
[SourceTitle "playchess.com"]
[Source "ChessBase"]
[SourceQuality "1"]
[TimeControl "30/3600+30:1800+30"]

{[%evp 12,59,17,17,9,17,13,0,36,9,67,58,64,57,114,109,142,132,193,195,218,207,228,220,246,220,250,250,252,190,231,104,247,245,249,242,252,246,374,362,439,438,447,215,293,229,294,304,374,368]} 1. d4 {[%emt 0:02:07]} d5 {[%emt 0:00:27]} 2. c4 {[%emt 0:00:08]} e6 {[%emt 0:00:13]} 3. Nf3 {[%emt 0:00:05]} Nf6 {[%emt 0:00:30]} 4. g3 {[%emt 0:00:30]} dxc4 {[%emt 0:00:30]} 5. Bg2 {[%emt 0:00:30]} c5 {[%emt 0:00:30]} 6. O-O {[%emt 0:00:30]} Nc6 {[%emt 0:00:30]} 7. dxc5 {[%emt 0:00:30]} Qxd1 {[%emt 0:00:30] E04: Open Catalan: 5 Nf3.} 8. Rxd1 {[%emt 0:00:30]} Bxc5 {[%emt 0:09:17]} 9. Nfd2 {[%emt 1:00:10]} Ne5 {The position is equal.} 10. Na3 {[%emt 0:00:00][%cal Bb1a3,Ba3b5,Bb5d6][%mdl 32]} c3 {[%emt 0:15:30]} ({Black should play} 10... Bxa3 $11 11. bxa3 c3) 11. bxc3 $14 {[%emt 0:00:00] [#]} O-O $146 {[%emt 0:03:23]} ({Predecessor:} 11... a6 12. Nb3 Bb6 13. Rb1 Nfd7 14. Nd4 Rb8 15. f4 Ng4 16. Nc4 Bc5 17. h3 Ngf6 {½-½ (77) Khotenashvili,B (2453)-Terzi,A (2321) Minsk 2019}) 12. Nb3 {[%emt 0:00:00]} Bb6 {[%emt 0:08:39]} (12... Be7 $14) 13. c4 $16 {[%emt 0:00:00]} Ned7 {[%emt 0:05:24]} 14. Nb5 {[%emt 0:00:00] &Bianco is more active.} Nc5 {[%emt 0:06:58]} (14... a6 $16 {was necessary.}) 15. Ba3 $18 {[%emt 0:00:00]} Nfd7 {[%emt 0:01:01]} 16. Rab1 {[%emt 0:00:00]} Rb8 {[%emt 0:04:52]} 17. Nd6 {[%emt 0:00:00]} Nxb3 18. Rxb3 {[%emt 0:00:00]} Nc5 {[%emt 0:07:52]} 19. Rb5 {[%emt 0:00:00]} Na4 {[%emt 0:01:40]} 20. Ne4 {[%emt 0:00:00] Against Nc3} Rd8 {[%emt 0:00:47]} 21. Rxd8+ {[%emt 0:00:00]} Bxd8 {[%emt 0:00:06]} 22. Bd6 {[%emt 0:06:30]} Ra8 {[%emt 0:00:45] [#]} 23. c5 $1 {[%emt 0:00:30][%cal Bc4c5,Bc5b6][%mdl 32]} f5 {[%emt 0:01:16]} 24. Rb4 {[%emt 0:00:00]} Nb6 {[%emt 0:01:50]} (24... fxe4 $142 25. Rxa4 Bd7 26. Rxe4 Rc8) 25. Nc3 {[%emt 0:00:00]} ({Weaker is} 25. cxb6 fxe4 26. Bc7 (26. Rxe4 axb6 27. Rc4 Bd7 $16) 26... Be7 $18) 25... Bf6 {[%emt 0:00:00]} 26. cxb6 {[%emt 0:00:00]} Bxc3 {[%emt 0:00:27]} 27. Ra4 {[%emt 0:02:00]} (27. Rc4 $142 Ba5 28. bxa7) 27... a6 28. Rc4 {[%emt 0:00:00]} Bf6 {[%emt 0:00:59]} 29. Rc7 {[%emt 0:00:00]} Bd8 {[%emt 0:00:32]} 30. Rxb7 {[%emt 0:00:00] Black did not feel at home in the position after the opening.  Weighted Error Value: White=0.21 (precise) /Black=0.40} 1-0

[Event "2nd Bassano Easter 2022"]
[Site "Bassano del Grappa"]
[Date "2022.04.15"]
[Round "1.5"]
[White "Walter, Thomas"]
[Black "Petrov, Martin"]
[Result "1/2-1/2"]
[ECO "B94"]
[WhiteElo "2127"]
[BlackElo "2542"]
[Annotator "TA"]
[PlyCount "84"]
[EventDate "2022.04.14"]
[EventType "swiss"]
[EventCountry "ITA"]
[SourceTitle "playchess.com"]
[Source "ChessBase"]
[SourceQuality "1"]
[TimeControl "30/3600+30:1800+30"]

{[%evp 13,84,-5,20,0,2,-9,33,0,-6,-4,95,-40,-37,-66,-58,-62,-68,-85,-99,-85,-91,-64,17,0,20,10,62,47,47,12,12,13,9,0,0,0,0,0,0,0,0,0,8,8,8,14,22,-7,-6,-7,0,0,0,0,8,8,8,8,0,0,-4,-4,-7,-8,-6,-7,0,-4,0,0,0,0,22]} 1. e4 {[%emt 1:01:00]} c5 {[%emt 1:01:00]} 2. Nf3 {[%emt 0:00:30]} d6 {[%emt 0:00:30]} 3. d4 {[%emt 0:00:30]} cxd4 {[%emt 0:00:30]} 4. Nxd4 {[%emt 0:00:30]} Nf6 {[%emt 0:00:30]} 5. Nc3 {[%emt 0:00:30]} a6 {[%emt 0:00:30]} 6. Bg5 {[%emt 0:00:30]} Nbd7 {[%emt 0:00:30]} 7. f4 {[%emt 0:00:30]} Qc7 {[%emt 0:00:30]} 8. Qf3 {[%emt 0:00:30] B94: Sicilian Najdorf: 6 Bg5 Nbd7.} b5 {[%emt 0:00:30] is the new trend.} 9. O-O-O {[%emt 0:00:30]} Bb7 {[%emt 0:00:30]} 10. Bd3 {[%emt 0:00:30] White is slightly better.} (10. Bxf6 $5 Nxf6 11. g3 $11) 10... Qb6 {[%emt 0:00:30]} 11. Bxf6 {[%emt 0:00:30]} gxf6 {[%emt 0:00:30] [#]} (11... Nxf6 $11 12. Nd5 Nxd5 13. exd5 g6) 12. Nf5 $146 {[%emt 0:00:30] &Bianco is more active.} (12. Be2 $16) ({Predecessor:} 12. Be2 h5 13. Nd5 Qa5 14. Kb1 e6 15. Nc3 Qd8 16. Nb3 f5 17. Bd3 Qf6 18. Rhe1 {1-0 (28) Elishev,I (2214)-Juptner,J (2283) Bol 2010}) 12... e6 $15 {[%emt 0:00:30] Inhibits Nd5.} 13. Rhe1 {[%emt 0:00:30][%cal Of3h5,Bh1e1,Be1e3,Be3e2][%mdl 32]} O-O-O {[%emt 0:00:30]} ({Don't play} 13... exf5 14. exf5+ Ne5 15. Nd5 Bxd5 16. Qxd5 $11) 14. Ne3 {[%emt 0:00:30]} h5 $1 {[%emt 0:00:30]} 15. f5 {[%emt 0:00:30]} Bh6 {[%emt 0:00:30] [#] ...Ne5 is the strong threat.} 16. Kb1 {[%emt 0:00:30]} Ne5 {[%emt 0:00:30]} 17. Qh3 {[%emt 0:00:30]} Bxe3 {[%emt 0:00:30]} ({Black should play} 17... Kb8 $15 18. Nf1 Bg5) 18. Rxe3 $11 {[%emt 0:00:30]} Ng4 {[%emt 0:00:30]} 19. Re2 {[%emt 0:00:30]} Kb8 {[%emt 0:00:30]} (19... Nf2 $11 20. Rxf2 Qxf2) 20. Qh4 $14 {[%emt 0:00:30]} exf5 {[%emt 0:00:30]} 21. Nd5 {[%emt 0:00:30]} Bxd5 {[%emt 0:00:30] The position is equal.} 22. exd5 {[%emt 0:00:30]} Rde8 {[%emt 0:00:30]} 23. h3 {[%emt 0:00:30]} Rxe2 {[%emt 0:00:30]} 24. Bxe2 {[%emt 0:00:30]} Qf2 {[%emt 0:00:30]} 25. Qxf2 {[%emt 0:00:30]} Nxf2 $11 {[%emt 0:00:30][%mdl 4096] Endgame KRB-KRN} 26. Rf1 {[%emt 0:00:30]} Ne4 {[%emt 0:00:30] [#] And now ...Nd2+ would win.} 27. Rf4 {[%emt 0:00:30]} Ng3 {[%emt 0:00:30]} 28. Bd3 {[%emt 0:00:30]} Re8 {[%emt 0:00:30][%cal Re8e1]} 29. a4 {[%emt 0:00:30]} Re5 {[%emt 0:00:30]} 30. Rf3 {[%emt 0:00:30]} Ne4 {[%emt 0:00:30] White must now prevent ...Nd2+.} 31. Rf4 {[%emt 0:30:30]} Rxd5 {[%emt 0:30:30]} 32. axb5 {[%emt 0:00:30]} axb5 33. Rh4 {[%emt 0:00:30]} Ng3 {[%emt 0:01:00]} 34. Rb4 {[%emt 0:00:30]} Kc7 {[%emt 0:00:30]} 35. Rxb5 {[%emt 0:00:30]} Re5 {[%emt 0:00:30]} 36. Bc4 {[%emt 0:00:30]} Kc6 {[%emt 0:00:30]} 37. Rb3 {[%emt 0:00:30]} Ne4 {[%emt 0:00:30] Strongly threatening ...Nd2+.} 38. Kc1 {[%emt 0:00:30] Prevents Nd2.} d5 {[%emt 0:00:30]} 39. Bb5+ {[%emt 0:00:30]} Kd6 {[%emt 0:00:30]} 40. Ra3 {[%emt 0:00:30]} Kc5 {[%emt 0:00:30]} 41. Be2 {[%emt 0:00:30]} h4 {[%emt 0:00:30]} 42. c3 {[%emt 0:00:30]} Nd6 {[%emt 0:00:30] Weighted Error Value: White=0.14 (very precise) /Black=0.15 (very precise)} 1/2-1/2